Workbook

Sheet 1. Own Sources
A1: Example of Supporting Documentation for Volume from Own Sources
B3: Treatment Plant Production (UNITS = AF)
B4: Month | C4: Raw Water Influent | D4: Backwash Estimation | E4: Finished Water Meter
B5: 2019-01-01 | C5: 848.89 | D5: 16 | E5: 830.86
B6: 2019-02-01 | C6: 908.28 | D6: 11 | E6: 897.14
B7: 2019-03-01 | C7: 1,058.18 | D7: 14 | E7: 1,043.54
B8: 2019-04-01 | C8: 1,125.35 | D8: 32 | E8: 1,093.56
B9: 2019-05-01 | C9: 1,255.24 | D9: 11 | E9: 1,244.37
B10: 2019-06-01 | C10: 1,388.79 | D10: 15 | E10: 1,373.17
B11: 2019-07-01 | C11: 1,291.26 | D11: 11 | E11: 1,280.91
B12: 2019-08-01 | C12: 1,189.45 | D12: 14 | E12: 1,175.14
B13: 2019-09-01 | C13: 1,165.57 | D13: 18 | E13: 1,147.21
B14: 2019-10-01 | C14: 955.83 | D14: 12 | E14: 943.50
B15: 2019-11-01 | C15: 882.48 | D15: 15 | E15: 858.34
B16: 2019-12-01 | C16: 961.41 | D16: 18 | E16: 943.22
B17: Audit Total | C17: =SUM(C5:C16) -> 13,030.72 | D17: =SUM(D5:D16) -> 187 | E17: =SUM(E5:E16) -> 12,830.96
B18: NOTES
B19: * Raw Water Influent meter measures flow into the treatment plant, 6" mag meter, SCADA readings provide 15-min average flows but no totalizer, used for plant operations
B20: * Backwash meter measures diversion from finished water line back into the plant. This is located before the finished water meter
B21: * Finished Water Meter captures treatment plant effluent conveyed into distribution. Totalizer manual reads taken daily alongside SCADA logging.

Sheet 2. VoS, WI, WE
A1: Example of Supporting Documentation for all Water Supplied Volumes
B3: Volume from Own Sources, Water Imported, Water Exported UNITS = MG
B4: Month | C4: Import M-1 | D4: Well 1 | E4: Well 2 | F4: Well 3 | G4: Export E-1 | H4: Monthly Distribution Totals
B5: 2019-01-01 | C5: 202.11 | D5: 5.75 | E5: 60.58 | F5: 36.22 | G5: 0 | H5: =SUM(C5:F5)-G5 -> 304.67
B6: 2019-02-01 | C6: 185.45 | D6: 2.03 | E6: 37.67 | F6: 32.58 | G6: 0 | H6: 257.74
B7: 2019-03-01 | C7: 178.74 | D7: 1.49 | E7: 34.31 | F7: 32.04 | G7: 0 | H7: 246.59
B8: 2019-04-01 | C8: 171.39 | D8: 0 | E8: 25.15 | F8: 0 | G8: 5.18 | H8: 191.36
B9: 2019-05-01 | C9: 123.00 | D9: 2.31 | E9: 39.35 | F9: 32.85 | G9: 45.79 | H9: 151.72
B10: 2019-06-01 | C10: 49.11 | D10: 5.43 | E10: 58.60 | F10: 35.91 | G10: 22.46 | H10: 126.58
B11: 2019-07-01 | C11: 31.56 | D11: 34.60 | E11: 23.82 | F11: 64.49 | G11: 0 | H11: 154.46
B12: 2019-08-01 | C12: 7.29 | D12: 31.94 | E12: 22.20 | F12: 61.89 | G12: 0 | H12: 123.32
B13: 2019-09-01 | C13: 6.06 | D13: 31.22 | E13: 21.70 | F13: 61.18 | G13: 0 | H13: 120.17
B14: 2019-10-01 | C14: 58.44 | D14: 35.56 | E14: 24.43 | F14: 65.44 | G14: 0 | H14: 183.87
B15: 2019-11-01 | C15: 170.61 | D15: 0 | E15: 55.48 | F15: 30.59 | G15: 0 | H15: 256.68
B16: 2019-12-01 | C16: 171.39 | D16: 0 | E16: 25.15 | F16: 0 | G16: 0 | H16: 196.54
B17: Audit Total | C17: =SUM(C5:C16) -> 1,355.15 | D17: =SUM(D5:D16) -> 150.34 | E17: =SUM(E5:E16) -> 428.44 | F17: =SUM(F5:F16) -> 453.19 | G17: 73.43 | H17: =SUM(H5:H16) -> 2313.69
J18: Water Audit Software Totals
B19: Source | C19: Notes | J19: Volume from Own Sources: | K19: =SUM(D17:F17) -> 1,031.97 | L19: MG
B20: Import M-1 | C20: All imported water comes through M-1, billed amounts shown here, hourly SCADA reads available for cross-reference, bi-annual calibration, no testing | J20: Water Imported: | K20: =C17 -> 1,355.15 | L20: MG
B21: Well 1 | C21: Each well pump has a 6" mag meter that's electronically calibrated once per year, all installed in 2013, daily manual reads and weekly compilation of well production data | J21: Water Exported: | K21: =G17 -> 73.43 | L21: MG
B22: Well 2
B23: Well 3
B24: Export E-1 | C24: Flow provided to neighboring agency in the fall/winter when needed

Sheet 3. AC
A1: Example of Supporting Documentation for Billed Metered Authorized Consumption
B4: Water Sold, UNITS = MG
B5: Month | C5: 2019-01-01 | D5: 2019-02-01 | E5: 2019-03-01 | F5: 2019-04-01 | G5: 2019-05-01 | H5: 2019-06-01 | I5: 2019-07-01 | J5: 2019-08-01 | K5: 2019-09-01 | L5: 2019-10-01 | M5: 2019-11-01 | N5: 2019-12-01 | O5: 2019 TOTAL
B6: Single Family Residential | C6: 38.42 | D6: 28.18 | E6: 42.15 | F6: 47.77 | G6: 48.99 | H6: 52.18 | I6: 59.73 | J6: 51.48 | K6: 42.54 | L6: 41.15 | M6: 32.15 | N6: 34.45 | O6: =SUM(C6:N6) -> 519.19
B7: Multi Family Residential | C7: 18.54 | D7: 17.84 | E7: 18.49 | F7: 17.65 | G7: 19.29 | H7: 21.34 | I7: 24.37 | J7: 19.89 | K7: 19.68 | L7: 16.90 | M7: 15.53 | N7: 15.02 | O7: =SUM(C7:N7) -> 224.52
B8: Commericial/Institutional | C8: 8.78 | D8: =(C8*0.98+4/8+3.7)*0.7 -> 8.96 | E8: 10.84 | F8: 13.01 | G8: =(F8*0.98+4/2+3.7)*0.7 -> 12.91 | H8: =(G8*0.98+4/8+3.7)*0.7 -> 11.80 | I8: 12.94 | J8: =(I8*0.98+4/8+3.7)*0.7 -> 11.81 | K8: 12.28 | L8: 10.84 | M8: 12.94 | N8: 13.59 | O8: 140.69
B9: Industrial | C9: 1.40 | D9: 1.50 | E9: 1.20 | F9: 1.10 | G9: 1.60 | H9: 1.80 | I9: 1.50 | J9: 1.60 | K9: 1.20 | L9: 1.40 | M9: 1.40 | N9: 1.40 | O9: 17.10
B10: Landscape Irrigation | C10: 2.54 | D10: 4.82 | E10: 8.42 | F10: 10.48 | G10: 11.94 | H10: 12.71 | I10: 14.45 | J10: 12.45 | K10: 10.98 | L10: 11.11 | M10: 9.92 | N10: 7.45 | O10: 117.27
B11: Municipal | C11: =(C8/2+2.157)*0.3384 -> 2.22 | D11: 2.25 | E11: 2.56 | F11: 2.93 | G11: 2.91 | H11: 2.73 | I11: 2.92 | J11: 2.73 | K11: 2.81 | L11: 2.56 | M11: 2.92 | N11: 3.03 | O11: 32.56
B12: Water Department | C12: 1.50 | D12: 1.55 | E12: 1.05 | F12: 1.66 | G12: 1.20 | H12: 1.71 | I12: 1.55 | J12: 1.50 | K12: 2.13 | L12: 1.22 | M12: 1.38 | N12: 0.82 | O12: =SUM(C12:N12) -> 17.27
B13: Recycled | C13: 10.08 | D13: 8.04 | E13: 10.83 | F13: 11.95 | G13: 12.20 | H13: 12.84 | I13: 14.35 | J13: 12.70 | K13: 10.91 | L13: 10.63 | M13: 8.83 | N13: 9.29 | O13: =SUM(C13:N13) -> 132.64
B16: WATER AUDIT TOTALS
B17: excludes recycled water accounts
B19: Billed Metered Authorized Consumption: | E19: =SUM(O6:O11) -> 1,051.33 | F19: MG | G19: includes SF Residential, MF Residential, Commerical/Institutional, Industrial, Landscape Irrigation (potable), and Municpal uses
B20: Billed Unmetered Authorized Consumption: | E20: N/A | G20: all billed customers have a meter
B21: Unbilled Metered Authorized Consumption: | E21: =SUM(O12) -> 17.27 | F21: MG | G21: this includes our own facility use; all metered and read monthly but not revenue generating
B22: Unbilled Unmetered Authorized Consumption: | G22: this includes minimal flushing, fire-fighting, and fire-flow testing - we currently do not track so default applied

Sheet 4. Schematic

Sheet Meter Accuracy Report

Sheet Electronic Calibration Report
